[Event "*** Titled Tuesday 3|2 Blitz"]
[Site "Chess.com"]
[Date "2016.05.03"]
[Round "4"]
[White "jposthuma"]
[Black "PedroLeRobot"]
[Result "0-1"]
[WhiteElo "2144"]
[BlackElo "2468"]
[TimeControl "180+2"]
[EndTime "17:50:09 PDT"]
[Termination "PedroLeRobot won on time"]

1. d4 {[%clk 0:03:01.9]} 1... Nf6 {[%clk 0:02:50.3]} 2. c4 {[%clk 0:03:02.6]}
2... b6 {[%clk 0:02:47.3]} 3. f3 {[%clk 0:02:49.2]} 3... Bb7 {[%clk 0:02:46.4]}
4. e4 {[%clk 0:02:49.3]} 4... e6 {[%clk 0:02:42.4]} 5. Bd3 {[%clk 0:02:43.9]}
5... d5 {[%clk 0:02:43.5]} 6. cxd5 {[%clk 0:02:41.5]} 6... exd5 {[%clk
0:02:45.4]} 7. e5 {[%clk 0:02:43]} 7... Nfd7 {[%clk 0:02:47]} 8. f4 {[%clk
0:02:37.3]} 8... Qh4+ {[%clk 0:02:30.6]} 9. g3 {[%clk 0:02:37.3]} 9... Qe7
{[%clk 0:02:30.6]} 10. Nc3 {[%clk 0:02:29]} 10... c5 {[%clk 0:02:28.9]} 11. Nf3
{[%clk 0:02:21.6]} 11... g6 {[%clk 0:02:15.8]} 12. Be3 {[%clk 0:02:17.6]} 12...
Bg7 {[%clk 0:02:16.2]} 13. O-O {[%clk 0:02:13.8]} 13... f5 {[%clk 0:01:57.5]}
14. Qd2 {[%clk 0:01:46.7]} 14... O-O {[%clk 0:01:56.1]} 15. Be2 {[%clk
0:01:32.3]} 15... c4 {[%clk 0:01:53.1]} 16. Nb5 {[%clk 0:01:27.3]} 16... a6
{[%clk 0:01:40.6]} 17. Nd6 {[%clk 0:01:19.3]} 17... Bc6 {[%clk 0:01:42]} 18.
Rfc1 {[%clk 0:01:04.4]} 18... b5 {[%clk 0:01:33.6]} 19. Qa5 {[%clk 0:01:02.7]}
19... Qd8 {[%clk 0:01:33]} 20. Bd2 {[%clk 0:00:58.9]} 20... Nb6 {[%clk 0:01:33]}
21. Bb4 {[%clk 0:00:45.7]} 21... N8d7 {[%clk 0:01:33.3]} 22. Bc5 {[%clk
0:00:38.7]} 22... Na4 {[%clk 0:01:29.2]} 23. Qxd8 {[%clk 0:00:34.6]} 23... Rfxd8
{[%clk 0:01:31.1]} 24. b4 {[%clk 0:00:26.4]} 24... Nf8 {[%clk 0:01:28.9]} 25.
Bd1 {[%clk 0:00:21]} 25... Nxc5 {[%clk 0:01:20.9]} 26. bxc5 {[%clk 0:00:20.1]}
26... Ne6 {[%clk 0:01:20.6]} 27. a3 {[%clk 0:00:19.2]} 27... Bh6 {[%clk
0:01:15.2]} 28. Kf2 {[%clk 0:00:20.1]} 28... Rdb8 {[%clk 0:01:14.1]} 29. Rcb1
{[%clk 0:00:20]} 29... a5 {[%clk 0:01:13.6]} 30. h4 {[%clk 0:00:18.3]} 30... Bf8
{[%clk 0:01:11.8]} 31. Ke3 {[%clk 0:00:18.6]} 31... b4 {[%clk 0:01:09.3]} 32.
axb4 {[%clk 0:00:19.6]} 32... axb4 {[%clk 0:01:11.2]} 33. Rxa8 {[%clk
0:00:20.8]} 33... Bxa8 {[%clk 0:01:13.1]} 34. Ba4 {[%clk 0:00:20.9]} 34... b3
{[%clk 0:01:12.1]} 35. Bd7 {[%clk 0:00:20.8]} 35... Nc7 {[%clk 0:01:12.7]} 36.
Ng5 {[%clk 0:00:17.9]} 36... c3 {[%clk 0:01:09.8]} 37. Rh1 {[%clk 0:00:03.5]}
37... b2 {[%clk 0:01:10.5]} 38. h5 {[%clk 0:00:04.4]} 38... c2 {[%clk
0:01:10.7]} 39. hxg6 {[%clk 0:00:05.2]} 39... c1=Q+ {[%clk 0:01:12.1]} 40. Kf3
{[%clk 0:00:02.7]} 40... Qxh1+ {[%clk 0:01:12.4]} 0-1

[Event "*** Titled Tuesday 3|2 Blitz"]
[Site "Chess.com"]
[Date "2016.05.03"]
[Round "4"]
[White "rookoco"]
[Black "chito89"]
[Result "1-0"]
[WhiteElo "2471"]
[BlackElo "2606"]
[TimeControl "180+2"]
[EndTime "17:51:22 PDT"]
[Termination "rookoco won by resignation"]

1. e4 {[%clk 0:03:01.9]} 1... e5 {[%clk 0:02:59]} 2. Nf3 {[%clk 0:03:02.6]} 2...
Nc6 {[%clk 0:02:49.1]} 3. Bb5 {[%clk 0:03:03]} 3... a6 {[%clk 0:02:49.7]} 4. Ba4
{[%clk 0:03:03.6]} 4... Nf6 {[%clk 0:02:50.9]} 5. O-O {[%clk 0:03:03.9]} 5... b5
{[%clk 0:02:51.8]} 6. Bb3 {[%clk 0:03:04.7]} 6... Bc5 {[%clk 0:02:52.4]} 7. Nc3
{[%clk 0:03:04.4]} 7... d6 {[%clk 0:02:51.9]} 8. Nd5 {[%clk 0:03:04.3]} 8... h6
{[%clk 0:02:50.1]} 9. a4 {[%clk 0:03:02.5]} 9... Rb8 {[%clk 0:02:34.9]} 10. axb5
{[%clk 0:03:02.8]} 10... axb5 {[%clk 0:02:34.8]} 11. c3 {[%clk 0:02:56.2]} 11...
Nxd5 {[%clk 0:02:32.5]} 12. Bxd5 {[%clk 0:02:51.1]} 12... Ne7 {[%clk 0:02:33.5]}
13. Bb3 {[%clk 0:02:49.2]} 13... O-O {[%clk 0:02:30.5]} 14. d4 {[%clk 0:02:49]}
14... exd4 {[%clk 0:02:31.8]} 15. cxd4 {[%clk 0:02:49.1]} 15... Bb6 {[%clk
0:02:33.3]} 16. h3 {[%clk 0:02:47.4]} 16... Ng6 {[%clk 0:02:32.7]} 17. Be3
{[%clk 0:02:44.2]} 17... Qf6 {[%clk 0:02:30.9]} 18. Re1 {[%clk 0:02:36.7]} 18...
Bb7 {[%clk 0:02:07.8]} 19. Qc2 {[%clk 0:02:34.8]} 19... Rfe8 {[%clk 0:02:08.3]}
20. e5 {[%clk 0:02:26]} 20... dxe5 {[%clk 0:01:26]} 21. dxe5 {[%clk 0:02:26.1]}
21... Nxe5 {[%clk 0:01:11.6]} 22. Nxe5 {[%clk 0:02:25.8]} 22... Rxe5 {[%clk
0:01:00.1]} 23. Bxb6 {[%clk 0:02:12.5]} 23... Rg5 {[%clk 0:01:01]} 24. Qxc7
{[%clk 0:01:39.6]} 24... Rxg2+ {[%clk 0:00:59]} 25. Kf1 {[%clk 0:01:39.7]} 25...
Qf3 {[%clk 0:00:37.3]} 26. Qxb8+ {[%clk 0:01:07.3]} 26... Kh7 {[%clk 0:00:37.4]}
27. Bc2+ {[%clk 0:01:08.7]} 27... g6 {[%clk 0:00:38]} 28. Be4 {[%clk 0:00:48.2]}
28... Bxe4 {[%clk 0:00:15.5]} 29. Rxe4 {[%clk 0:00:50.1]} 29... Rg5 {[%clk
0:00:08.6]} 30. Qf4 {[%clk 0:00:23.7]} 30... Qd3+ {[%clk 0:00:06.2]} 31. Re2
{[%clk 0:00:24]} 31... Qxh3+ {[%clk 0:00:07.4]} 32. Ke1 {[%clk 0:00:25]} 32...
Rg1+ {[%clk 0:00:09]} 33. Kd2 {[%clk 0:00:26]} 33... Qd7+ {[%clk 0:00:10.7]} 34.
Qd4 {[%clk 0:00:23.2]} 34... Qxd4+ {[%clk 0:00:11]} 35. Bxd4 {[%clk 0:00:25.1]}
35... Rxa1 {[%clk 0:00:11.9]} 36. Re7 {[%clk 0:00:25.8]} 36... g5 {[%clk
0:00:11.4]} 37. Rxf7+ {[%clk 0:00:26.1]} 37... Kg6 {[%clk 0:00:13.1]} 38. Rf6+
{[%clk 0:00:27.4]} 38... Kh7 {[%clk 0:00:12.6]} 39. Rb6 {[%clk 0:00:28]} 39...
h5 {[%clk 0:00:13.4]} 40. Rxb5 {[%clk 0:00:27.1]} 40... Kg6 {[%clk 0:00:15]} 41.
Be3 {[%clk 0:00:28.2]} 41... Rg1 {[%clk 0:00:15.6]} 42. b4 {[%clk 0:00:28.8]}
42... h4 {[%clk 0:00:16.7]} 43. Rxg5+ {[%clk 0:00:18.4]} 43... Rxg5 {[%clk
0:00:14.2]} 44. Bxg5 {[%clk 0:00:20.3]} 44... Kxg5 {[%clk 0:00:15.8]} 45. Ke2
{[%clk 0:00:21.7]} 45... Kf4 {[%clk 0:00:14.7]} 46. Kf1 {[%clk 0:00:18.6]} 46...
Kf3 {[%clk 0:00:15.2]} 47. Kg1 {[%clk 0:00:19.5]} 47... h3 {[%clk 0:00:16.8]}
48. b5 {[%clk 0:00:20.6]} 1-0

[Event "*** Titled Tuesday 3|2 Blitz"]
[Site "Chess.com"]
[Date "2016.05.03"]
[Round "4"]
[White "Dr-Bassem"]
[Black "Zurability"]
[Result "1-0"]
[WhiteElo "2574"]
[BlackElo "2421"]
[TimeControl "180+2"]
[EndTime "17:51:24 PDT"]
[Termination "Dr-Bassem won by resignation"]

1. e4 {[%clk 0:03:01.9]} 1... d6 {[%clk 0:03:01.5]} 2. d4 {[%clk 0:03:02.2]}
2... Nf6 {[%clk 0:03:03]} 3. Nc3 {[%clk 0:03:03.4]} 3... e5 {[%clk 0:03:04.6]}
4. Nf3 {[%clk 0:03:03.5]} 4... Nbd7 {[%clk 0:03:05.4]} 5. Bc4 {[%clk 0:03:04.2]}
5... Be7 {[%clk 0:03:07]} 6. O-O {[%clk 0:03:05.6]} 6... O-O {[%clk 0:03:08.6]}
7. a4 {[%clk 0:03:07]} 7... c6 {[%clk 0:03:10.1]} 8. Re1 {[%clk 0:03:08.3]} 8...
a5 {[%clk 0:03:11.3]} 9. h3 {[%clk 0:03:07.9]} 9... Nb6 {[%clk 0:03:12.5]} 10.
Bd3 {[%clk 0:02:36.6]} 10... Nfd7 {[%clk 0:03:12.7]} 11. Be3 {[%clk 0:02:31.3]}
11... exd4 {[%clk 0:03:12.8]} 12. Bxd4 {[%clk 0:02:22.3]} 12... Bf6 {[%clk
0:03:13.5]} 13. Bf1 {[%clk 0:02:19.2]} 13... Ne5 {[%clk 0:03:07.9]} 14. Nxe5
{[%clk 0:02:19.6]} 14... Bxe5 {[%clk 0:03:07.7]} 15. Qd2 {[%clk 0:02:15.7]}
15... Nd7 {[%clk 0:02:36.3]} 16. Rad1 {[%clk 0:02:15.5]} 16... Qf6 {[%clk
0:02:29.9]} 17. g3 {[%clk 0:02:07.7]} 17... g5 {[%clk 0:02:24.2]} 18. Be3 {[%clk
0:01:42.5]} 18... h6 {[%clk 0:02:14.1]} 19. f4 {[%clk 0:01:42]} 19... gxf4
{[%clk 0:02:14]} 20. gxf4 {[%clk 0:01:43.9]} 20... Bxc3 {[%clk 0:02:15.1]} 21.
bxc3 {[%clk 0:01:45.2]} 21... Nc5 {[%clk 0:02:13.3]} 22. Qg2+ {[%clk 0:01:16.2]}
22... Qg6 {[%clk 0:01:52.5]} 23. Rxd6 {[%clk 0:00:41]} 23... Qxg2+ {[%clk
0:01:50.4]} 24. Bxg2 {[%clk 0:00:42.9]} 24... Nxa4 {[%clk 0:01:52.1]} 25. Rxh6
{[%clk 0:00:40.7]} 25... Kg7 {[%clk 0:01:47.3]} 26. Rh5 {[%clk 0:00:34.5]} 26...
f6 {[%clk 0:01:45.2]} 27. c4 {[%clk 0:00:23.5]} 27... Be6 {[%clk 0:01:40.1]} 28.
Bf1 {[%clk 0:00:19.3]} 28... Nb2 {[%clk 0:01:33.3]} 29. c5 {[%clk 0:00:17]}
29... a4 {[%clk 0:01:34.1]} 30. Bd4 {[%clk 0:00:17.9]} 30... a3 {[%clk
0:01:32.8]} 31. Kf2 {[%clk 0:00:18.2]} 31... Rh8 {[%clk 0:01:23.1]} 32. Rxh8
{[%clk 0:00:17.6]} 32... Rxh8 {[%clk 0:01:23.9]} 33. f5 {[%clk 0:00:17.6]} 33...
Bc4 {[%clk 0:01:20.7]} 34. Bxb2 {[%clk 0:00:18]} 34... Bxf1 {[%clk 0:01:21.9]}
35. Bxa3 {[%clk 0:00:19.2]} 35... Rxh3 {[%clk 0:00:58.1]} 36. Bb2 {[%clk
0:00:18.9]} 36... Bb5 {[%clk 0:00:43.6]} 37. Rg1+ {[%clk 0:00:19.8]} 37... Kf7
{[%clk 0:00:43.4]} 38. Rg6 {[%clk 0:00:19.4]} 38... Rh2+ {[%clk 0:00:45]} 39.
Ke3 {[%clk 0:00:20.4]} 39... Rxc2 {[%clk 0:00:46.6]} 40. Bxf6 {[%clk 0:00:20.6]}
40... Rxc5 {[%clk 0:00:46]} 41. Bd4 {[%clk 0:00:21.4]} 41... Rc1 {[%clk
0:00:46]} 42. Rg7+ {[%clk 0:00:22.7]} 42... Ke8 {[%clk 0:00:45.7]} 43. Rxb7
{[%clk 0:00:23.1]} 43... Re1+ {[%clk 0:00:46.9]} 44. Kf4 {[%clk 0:00:24.3]}
44... Bd3 {[%clk 0:00:48.6]} 45. Be3 {[%clk 0:00:21.8]} 45... Rf1+ {[%clk
0:00:46.1]} 46. Ke5 {[%clk 0:00:22.8]} 46... Re1 {[%clk 0:00:46.3]} 47. Kd4
{[%clk 0:00:23.4]} 47... Bc2 {[%clk 0:00:46.7]} 48. f6 {[%clk 0:00:24.6]} 48...
Rd1+ {[%clk 0:00:47.8]} 49. Kc5 {[%clk 0:00:18]} 49... Rf1 {[%clk 0:00:44.8]}
50. e5 {[%clk 0:00:19.3]} 50... Bf5 {[%clk 0:00:46]} 51. f7+ {[%clk 0:00:18.8]}
1-0

[Event "*** Titled Tuesday 3|2 Blitz"]
[Site "Chess.com"]
[Date "2016.05.03"]
[Round "4"]
[White "chess960now"]
[Black "chorejason"]
[Result "1-0"]
[WhiteElo "2017"]
[BlackElo "2021"]
[TimeControl "180+2"]
[EndTime "17:51:28 PDT"]
[Termination "chess960now won by resignation"]

1. d4 {[%clk 0:03:01.9]} 1... Nf6 {[%clk 0:03:00.8]} 2. c4 {[%clk 0:03:02.5]}
2... g6 {[%clk 0:03:01.2]} 3. Nc3 {[%clk 0:02:59.6]} 3... Bg7 {[%clk 0:03:03.1]}
4. e4 {[%clk 0:03:00.2]} 4... O-O {[%clk 0:03:04.9]} 5. f3 {[%clk 0:03:01.1]}
5... d6 {[%clk 0:03:05.1]} 6. Be3 {[%clk 0:03:01.6]} 6... c5 {[%clk 0:03:06.8]}
7. dxc5 {[%clk 0:02:58.5]} 7... dxc5 {[%clk 0:03:08.7]} 8. Qxd8 {[%clk
0:02:51.7]} 8... Rxd8 {[%clk 0:03:10.6]} 9. Bxc5 {[%clk 0:02:52.4]} 9... Nc6
{[%clk 0:03:12.3]} 10. Nge2 {[%clk 0:02:40]} 10... Nd7 {[%clk 0:03:10.3]} 11.
Be3 {[%clk 0:02:39.7]} 11... Nde5 {[%clk 0:03:05.1]} 12. Ng3 {[%clk 0:02:32.3]}
12... Be6 {[%clk 0:03:00.4]} 13. Nd5 {[%clk 0:02:27.3]} 13... Na5 {[%clk
0:02:32.4]} 14. Rc1 {[%clk 0:02:08.9]} 14... Kf8 {[%clk 0:02:13.8]} 15. Nc7
{[%clk 0:02:00.5]} 15... Bxc4 {[%clk 0:01:48.7]} 16. Nxa8 {[%clk 0:01:54.1]}
16... Rxa8 {[%clk 0:01:39.5]} 17. b3 {[%clk 0:01:40.2]} 17... Nd3+ {[%clk
0:01:27]} 18. Bxd3 {[%clk 0:01:39.5]} 18... Bxd3 {[%clk 0:01:28.9]} 19. Kf2
{[%clk 0:01:23.9]} 19... Nc6 {[%clk 0:01:29.2]} 20. Rhd1 {[%clk 0:01:23.2]}
20... Bb5 {[%clk 0:01:07.7]} 21. Ne2 {[%clk 0:01:10.1]} 21... Ne5 {[%clk
0:01:03.4]} 22. Rc7 {[%clk 0:01:00.7]} 22... Bc6 {[%clk 0:00:51.7]} 23. Nd4
{[%clk 0:00:58.9]} 23... Bd7 {[%clk 0:00:40]} 24. Rxb7 {[%clk 0:00:37.4]} 24...
Rc8 {[%clk 0:00:40.9]} 25. Rd2 {[%clk 0:00:31.2]} 25... f5 {[%clk 0:00:32.6]}
26. exf5 {[%clk 0:00:26.7]} 26... gxf5 {[%clk 0:00:33.6]} 27. h3 {[%clk
0:00:22.2]} 27... Ke8 {[%clk 0:00:32]} 28. f4 {[%clk 0:00:19.8]} 28... Ng6
{[%clk 0:00:29.1]} 29. Nb5 {[%clk 0:00:17.8]} 29... Bc6 {[%clk 0:00:28.8]} 30.
Rc7 {[%clk 0:00:14.8]} 30... Rxc7 {[%clk 0:00:24.2]} 31. Nxc7+ {[%clk
0:00:16.7]} 31... Kf7 {[%clk 0:00:25.9]} 32. g3 {[%clk 0:00:13.4]} 32... Be4
{[%clk 0:00:26.9]} 33. Bxa7 {[%clk 0:00:12.2]} 33... Nf8 {[%clk 0:00:25.4]} 34.
b4 {[%clk 0:00:12.9]} 34... h6 {[%clk 0:00:26.3]} 35. Bd4 {[%clk 0:00:12]} 35...
Bxd4+ {[%clk 0:00:21.9]} 36. Rxd4 {[%clk 0:00:13.9]} 36... Nh7 {[%clk
0:00:22.1]} 37. b5 {[%clk 0:00:13.9]} 37... Nf6 {[%clk 0:00:22.4]} 38. a4 {[%clk
0:00:14.3]} 38... Bb7 {[%clk 0:00:22.8]} 39. a5 {[%clk 0:00:13.7]} 39... Ne4+
{[%clk 0:00:23.6]} 40. Ke1 {[%clk 0:00:13.5]} 40... Nc3 {[%clk 0:00:24.9]} 41.
a6 {[%clk 0:00:11.6]} 41... Bf3 {[%clk 0:00:24]} 42. Rd3 {[%clk 0:00:10.2]}
42... Nxb5 {[%clk 0:00:19.9]} 43. Nxb5 {[%clk 0:00:10.6]} 43... Ba8 {[%clk
0:00:21.6]} 44. Nc7 {[%clk 0:00:10.7]} 44... Bc6 {[%clk 0:00:22.9]} 45. a7
{[%clk 0:00:11.2]} 45... e5 {[%clk 0:00:24.8]} 46. fxe5 {[%clk 0:00:11.7]} 46...
Be4 {[%clk 0:00:25.3]} 47. Rd8 {[%clk 0:00:11.9]} 47... Kg6 {[%clk 0:00:25]} 48.
Nd5 {[%clk 0:00:12.7]} 48... f4 {[%clk 0:00:24.1]} 49. gxf4 {[%clk 0:00:12.7]}
1-0

[Event "*** Titled Tuesday 3|2 Blitz"]
[Site "Chess.com"]
[Date "2016.05.03"]
[Round "4"]
[White "Kacparov"]
[Black "Aguiar94"]
[Result "1-0"]
[WhiteElo "2574"]
[BlackElo "2386"]
[TimeControl "180+2"]
[EndTime "17:51:38 PDT"]
[Termination "Kacparov won by resignation"]

1. e4 {[%clk 0:03:01.9]} 1... c5 {[%clk 0:03:00.7]} 2. Nf3 {[%clk 0:02:59.9]}
2... e6 {[%clk 0:03:01.8]} 3. d4 {[%clk 0:03:01.1]} 3... cxd4 {[%clk 0:03:03.7]}
4. Nxd4 {[%clk 0:03:03]} 4... Nc6 {[%clk 0:03:05.1]} 5. Nc3 {[%clk 0:03:03.7]}
5... Qc7 {[%clk 0:03:06.1]} 6. Be2 {[%clk 0:03:02.8]} 6... a6 {[%clk 0:03:07.2]}
7. O-O {[%clk 0:03:03.6]} 7... Nf6 {[%clk 0:03:08.1]} 8. Be3 {[%clk 0:03:04.7]}
8... Bb4 {[%clk 0:03:08.1]} 9. Na4 {[%clk 0:03:05.7]} 9... O-O {[%clk
0:03:08.4]} 10. c4 {[%clk 0:03:03.8]} 10... Be7 {[%clk 0:03:09]} 11. c5 {[%clk
0:03:01.3]} 11... Nxe4 {[%clk 0:03:08.7]} 12. Rc1 {[%clk 0:03:01.3]} 12... f5
{[%clk 0:03:08]} 13. Bf3 {[%clk 0:03:02.5]} 13... Nf6 {[%clk 0:03:05.2]} 14. Nb6
{[%clk 0:03:01.8]} 14... Rb8 {[%clk 0:03:05.4]} 15. Re1 {[%clk 0:02:47.2]} 15...
f4 {[%clk 0:02:47.4]} 16. Nxc6 {[%clk 0:02:44.6]} 16... bxc6 {[%clk 0:02:38.6]}
17. Bd4 {[%clk 0:02:43.3]} 17... Rb7 {[%clk 0:02:29]} 18. Be5 {[%clk 0:02:40.9]}
18... Qd8 {[%clk 0:02:28.9]} 19. Bxf4 {[%clk 0:02:35.8]} 19... Nd5 {[%clk
0:02:25.5]} 20. Nxd5 {[%clk 0:02:35.6]} 20... cxd5 {[%clk 0:02:24.3]} 21. Be5
{[%clk 0:02:35.3]} 21... Rb5 {[%clk 0:02:16.8]} 22. Bd4 {[%clk 0:02:20.3]} 22...
Qc7 {[%clk 0:02:07.2]} 23. Be2 {[%clk 0:02:11.6]} 23... Rb8 {[%clk 0:01:45.4]}
24. Bd3 {[%clk 0:02:08.5]} 24... Bf6 {[%clk 0:01:45.5]} 25. Qh5 {[%clk
0:01:56.5]} 25... h6 {[%clk 0:01:37.4]} 26. Bxf6 {[%clk 0:01:53.2]} 26... Rxf6
{[%clk 0:01:37.8]} 27. Qe8+ {[%clk 0:01:53.2]} 27... Rf8 {[%clk 0:01:37.4]} 28.
Bh7+ {[%clk 0:01:53.9]} 28... Kxh7 {[%clk 0:01:38.4]} 29. Qxf8 {[%clk
0:01:55.3]} 29... Rxb2 {[%clk 0:01:32.5]} 30. h4 {[%clk 0:01:44]} 30... Rxa2
{[%clk 0:01:21]} 31. Re3 {[%clk 0:01:44.5]} 31... Bb7 {[%clk 0:01:15.2]} 32. Qf7
{[%clk 0:01:37.6]} 32... Qd8 {[%clk 0:00:32.6]} 33. Rg3 {[%clk 0:01:07.3]} 33...
Qf6 {[%clk 0:00:31.4]} 34. Qxf6 {[%clk 0:00:59.3]} 34... gxf6 {[%clk 0:00:33.3]}
35. Rb1 {[%clk 0:01:00.4]} 35... Bc6 {[%clk 0:00:28.8]} 36. Rb8 {[%clk
0:01:01.2]} 36... h5 {[%clk 0:00:22.6]} 37. Rf8 {[%clk 0:01:00.9]} 37... Ra4
{[%clk 0:00:21.8]} 38. Rf7+ {[%clk 0:01:01.1]} 38... Kh8 {[%clk 0:00:23.1]} 39.
Rxf6 {[%clk 0:01:02.4]} 39... Kh7 {[%clk 0:00:21]} 40. f4 {[%clk 0:01:01.8]}
40... d4 {[%clk 0:00:19.3]} 41. f5 {[%clk 0:01:02.3]} 41... e5 {[%clk
0:00:18.6]} 42. Rd6 {[%clk 0:00:59.9]} 42... Ra1+ {[%clk 0:00:19.3]} 43. Kh2
{[%clk 0:01:00.7]} 43... Rf1 {[%clk 0:00:19.8]} 44. f6 {[%clk 0:01:01.8]} 44...
a5 {[%clk 0:00:19.1]} 45. Rg5 {[%clk 0:01:02]} 45... a4 {[%clk 0:00:18.8]} 46.
Rxh5+ {[%clk 0:01:03.1]} 46... Kg6 {[%clk 0:00:19.9]} 47. Rg5+ {[%clk
0:01:04.2]} 47... Kf7 {[%clk 0:00:21.1]} 48. Rg7+ {[%clk 0:01:04.7]} 48... Kf8
{[%clk 0:00:22.4]} 49. h5 {[%clk 0:00:55.5]} 49... Rxf6 {[%clk 0:00:21.7]} 50.
Rgxd7 {[%clk 0:00:52.9]} 50... Bxd7 {[%clk 0:00:20]} 51. Rxf6+ {[%clk
0:00:53.4]} 51... Ke7 {[%clk 0:00:20.1]} 52. Rf1 {[%clk 0:00:50]} 52... Be8
{[%clk 0:00:19]} 53. g4 {[%clk 0:00:49.4]} 53... d3 {[%clk 0:00:19.5]} 54. Kg3
{[%clk 0:00:50]} 54... a3 {[%clk 0:00:20.6]} 55. Kf3 {[%clk 0:00:49.4]} 55...
Bc6+ {[%clk 0:00:19.9]} 56. Ke3 {[%clk 0:00:50.3]} 56... Be8 {[%clk 0:00:18.8]}
57. Ra1 {[%clk 0:00:50.7]} 1-0

[Event "*** Titled Tuesday 3|2 Blitz"]
[Site "Chess.com"]
[Date "2016.05.03"]
[Round "4"]
[White "DanielNaroditsky"]
[Black "NaziPaiki"]
[Result "1/2-1/2"]
[WhiteElo "2650"]
[BlackElo "2681"]
[TimeControl "180+2"]
[EndTime "17:51:44 PDT"]
[Termination "Game drawn by agreement"]

1. d4 {[%clk 0:03:01.9]} 1... Nf6 {[%clk 0:03:00.4]} 2. c4 {[%clk 0:03:03.4]}
2... e6 {[%clk 0:03:01.1]} 3. Nc3 {[%clk 0:03:05]} 3... Bb4 {[%clk 0:03:02.3]}
4. f3 {[%clk 0:03:06.1]} 4... c5 {[%clk 0:02:59.2]} 5. d5 {[%clk 0:03:06.8]}
5... O-O {[%clk 0:02:53.1]} 6. e4 {[%clk 0:03:07.9]} 6... d6 {[%clk 0:02:45.6]}
7. Ne2 {[%clk 0:03:07.2]} 7... exd5 {[%clk 0:02:46.6]} 8. cxd5 {[%clk
0:03:07.4]} 8... Nbd7 {[%clk 0:02:48.2]} 9. Ng3 {[%clk 0:03:08.7]} 9... Re8
{[%clk 0:02:47.6]} 10. Be2 {[%clk 0:03:10.2]} 10... a6 {[%clk 0:02:42.7]} 11.
O-O {[%clk 0:03:11]} 11... b5 {[%clk 0:02:42.7]} 12. a4 {[%clk 0:03:12.7]} 12...
bxa4 {[%clk 0:02:38]} 13. Rxa4 {[%clk 0:03:11.7]} 13... Ne5 {[%clk 0:02:37]} 14.
Kh1 {[%clk 0:02:58.7]} 14... Bd7 {[%clk 0:02:33]} 15. Ra2 {[%clk 0:02:56.1]}
15... c4 {[%clk 0:02:26.3]} 16. Be3 {[%clk 0:02:46.5]} 16... a5 {[%clk
0:02:24.9]} 17. Bd4 {[%clk 0:02:30.8]} 17... Rc8 {[%clk 0:02:19.2]} 18. f4
{[%clk 0:02:29.1]} 18... Nd3 {[%clk 0:02:19.4]} 19. Bxd3 {[%clk 0:02:28.4]}
19... cxd3 {[%clk 0:02:20.7]} 20. Qxd3 {[%clk 0:02:30.1]} 20... Bc5 {[%clk
0:02:19]} 21. e5 {[%clk 0:02:18.9]} 21... Bxd4 {[%clk 0:02:15.1]} 22. Qxd4
{[%clk 0:02:19.7]} 22... dxe5 {[%clk 0:02:16.3]} 23. fxe5 {[%clk 0:02:20]} 23...
Ng4 {[%clk 0:02:18]} 24. e6 {[%clk 0:01:46.9]} 24... Bxe6 {[%clk 0:02:14.2]} 25.
Qf4 {[%clk 0:01:21.6]} 25... Qh4 {[%clk 0:02:05.8]} 26. Nge4 {[%clk 0:01:21]}
26... Bf5 {[%clk 0:01:49.9]} 27. h3 {[%clk 0:01:11.7]} 27... Bxe4 {[%clk
0:01:47.2]} 28. Nxe4 {[%clk 0:01:11.6]} 28... f5 {[%clk 0:01:43.7]} 29. Ng3
{[%clk 0:00:34.6]} 29... g6 {[%clk 0:01:38.4]} 30. Kg1 {[%clk 0:00:32.6]} 30...
g5 {[%clk 0:01:25]} 31. Qxf5 {[%clk 0:00:30.3]} 31... Qxg3 {[%clk 0:01:26.2]}
32. Qxg5+ {[%clk 0:00:27.4]} 32... Kh8 {[%clk 0:01:27.3]} 33. hxg4 {[%clk
0:00:28.7]} 33... Re2 {[%clk 0:01:25.4]} 34. Qf6+ {[%clk 0:00:22.2]} 34... Kg8
{[%clk 0:01:26.6]} 35. Qf7+ {[%clk 0:00:23.5]} 35... Kh8 {[%clk 0:01:27.6]} 36.
Qf6+ {[%clk 0:00:25.1]} 36... Kg8 {[%clk 0:01:28.7]} 37. Qf3 {[%clk 0:00:22.2]}
37... Qxf3 {[%clk 0:01:22.5]} 38. Rxf3 {[%clk 0:00:23.2]} 38... Rc5 {[%clk
0:01:18.7]} 39. d6 {[%clk 0:00:17.5]} 39... Rd5 {[%clk 0:01:18.1]} 40. d7 {[%clk
0:00:16]} 40... Rxd7 {[%clk 0:01:19.1]} 41. Rxa5 {[%clk 0:00:17.3]} 41... Rxb2
{[%clk 0:01:17.3]} 42. Rg5+ {[%clk 0:00:18.4]} 42... Rg7 {[%clk 0:01:17.1]} 43.
Rgf5 {[%clk 0:00:19.9]} 43... Rd7 {[%clk 0:01:14.9]} 44. Kh2 {[%clk 0:00:19.3]}
44... Kg7 {[%clk 0:01:15.7]} 45. Rg5+ {[%clk 0:00:19]} 45... Kh6 {[%clk
0:01:12.6]} 46. Rg8 {[%clk 0:00:14.8]} 46... Rg7 {[%clk 0:00:43.5]} 47. Rh3+
{[%clk 0:00:16.1]} 47... Kg6 {[%clk 0:00:44.6]} 48. Rd8 {[%clk 0:00:17.8]} 48...
Rb6 {[%clk 0:00:44.6]} 49. Rh5 {[%clk 0:00:18.3]} 49... Kf6 {[%clk 0:00:42.3]}
50. Kh3 {[%clk 0:00:12.8]} 50... Rb3+ {[%clk 0:00:43.1]} 51. Kh4 {[%clk
0:00:11.6]} 51... Rb4 {[%clk 0:00:43.9]} 52. Rf5+ {[%clk 0:00:10.1]} 52... Ke7
{[%clk 0:00:42.6]} 53. Rd2 {[%clk 0:00:04.8]} 53... Rbxg4+ {[%clk 0:00:43.6]}
54. Kh3 {[%clk 0:00:06.3]} 1/2-1/2